Workbook

Sheet Tool
C1: Předpověď struktury stáda dojeného skotu
C2: Victor E. Cabrera (University of Wisconsin-Extension) a Pierre Meyer (Alltech, Inc.) | U2: =CowCI-8 -> 5 | V2: CowPreg
C3: Věk při 1. otelení | E3: 24 | F3: v měsících | U3: =hfrcalving-8 -> 16 | V3: hfrPreg
C4: Narozené jalovice | E4: 0.5 | F4: z celkového počtu | U4: =E6/E3 -> 0.01041666667 | V4: mo
C5: Úhyny telat | E5: 0.07 | F5: při nebo krátce po porodu | Q5: Heifers | R5: Cows | U5: =E7/12 -> 0.025 | V5: mo | X5: Heifers Calving | Z5: =VLOOKUP(hfrcalving,O12:S41,5) -> 9.318303038
C6: Vyřazování telat a jalovic | E6: 0.25 | F6: před zahájením 1. laktace | N6: Spočítej! | Q6: =SUM(S12:S41) -> 252.9239655 | R6: =SUM(S43:S202) -> 276.1441256 | X6: Cows Calving | Z6: =SUM(Z12:Z20) -> 16.44660672
C7: Vyřazování dojnic | E7: 0.3 | F7: za rok | N7: 1. laktace | X7: Total Calving | Z7: =SUM(Z5:Z6) -> 25.76490976
C8: Mezidobí | E8: 13 | F8: v měsících | N8: 2. laktace
C9: Počet dojnic ve stádě | E9: 250 | F9: počet | N9: 3. laktace
Q10: month | S10: 512 | U10: m+1 | V10: =S10+1 -> 513
C11: Výpočet stáda na zvolenou dobu | E11: 12 | F11: v měsících | N11: Heifers | O11: Age (m) | AD11: Pokud nefunguje tlačítko pro přepočet, prostudujte nápovědu.
O12: 1 | Q12: =IF(U12=1,IF(O12<hfrpreg,"Open","Pregnant"),"") -> Open | S12: 11.85593249 | U12: =IF(O12<=hfrcalving,1,0) -> 1 | V12: =Z7*(1-hfrcull)*(fmlcalv-E5/2)*U12 -> 11.85588425 | Y12: 1 | Z12: =VLOOKUP(CowCI,O43:S58,5) -> 4.863984621
O13: 2 | Q13: Open | S13: 11.7323827 | U13: 1 | V13: =S12*(1-hfrcull)*U13 -> 11.7324332 | Y13: 2 | Z13: =VLOOKUP(CowCI,O61:S76,5) -> 3.49987229
C14: Jalovice | O14: 3 | Q14: Open | S14: 11.61020338 | U14: 1 | V14: 11.61017038 | Y14: 3 | Z14: =VLOOKUP(CowCI,O79:S94,5) -> 2.518327461
C15: ≤ 2 měsíců věku | D15: =SUM(S12:S13) -> 23.58831519 | O15: 4 | Q15: Open | S15: 11.48922922 | U15: 1 | V15: 11.48926376 | Y15: 4 | Z15: =VLOOKUP(CowCI,O97:S112,5) -> 1.812046181
C16: 3 až 6 měsíců věku | D16: =SUM(S14:S17) -> 45.72041127 | O16: 5 | Q16: Open | S16: 11.36957232 | U16: 1 | V16: 11.36954975 | Y16: 5 | Z16: =VLOOKUP(CowCI,O115:S130,5) -> 1.303854907
C17: ≥ 7 měsíců a jalové | D17: =D19-D18-D15-D16 -> 96.13033898 | O17: 6 | Q17: Open | S17: 11.25140635 | U17: 1 | V17: 11.25113928 | Y17: 6 | Z17: =VLOOKUP(CowCI,O133:S148,5) -> 0.9381866955
C18: Březí | D18: =SUMIF(Q12:Q41,"pregnant",S12:S41) -> 87.48490005 | O18: 7 | Q18: Open | S18: 11.13392459 | U18: 1 | V18: 11.1342042 | Y18: 7 | Z18: =VLOOKUP(CowCI,O151:S166,5) -> 0.6750707236
C19: Celkem | D19: =Q6 -> 252.9239655 | O19: 8 | Q19: Open | S19: 11.01812891 | U19: 1 | V19: 11.01794621 | Y19: 8 | Z19: =VLOOKUP(CowCI,O169:S184,5) -> 0.4857460504
O20: 9 | Q20: Open | S20: 10.90316553 | U20: 1 | V20: 10.90335673 | Y20: 9 | Z20: =VLOOKUP(CowCI,O187:S202,5) -> 0.3495177872
D21: Laktace | O21: 10 | Q21: Open | S21: 10.7897158 | U21: 1 | V21: 10.78959088
C22: Dojnice | D22: 1 | E22: 2 | F22: 3 | G22: Další | H22: Celkem | O22: 11 | Q22: Open | S22: 10.67719204 | U22: 1 | V22: 10.67732292
C23: Jalové | D23: =SUMIF(Q43:Q58,"Open",S43:S58) -> 35.00130084 | E23: =SUMIF(Q61:Q76,"Open",S61:S76) -> 18.26996414 | F23: =SUMIF(Q79:Q94,"Open",S79:S94) -> 13.14612323 | G23: =SUMIF(Q97:Q202,"Open",S97:S202) -> 29.04735163 | H23: =SUM(D23:G23) -> 95.46473984 | O23: 12 | Q23: Open | S23: 10.56605682 | U23: 1 | V23: 10.56597129
C24: Březí a laktující | D24: =SUMPRODUCT(--(P43:P58="Milking"),--(Q43:Q58="Pregnant"),S43:S58) -> 53.337602 | E24: =SUMPRODUCT(--(P61:P76="Milking"),--(Q61:Q76="Pregnant"),S61:S76) -> 27.84093191 | F24: =SUMPRODUCT(--(P79:P94="Milking"),--(Q79:Q94="Pregnant"),S79:S94) -> 20.03289765 | G24: =SUMPRODUCT(--(P97:P202="Milking"),--(Q97:Q202="Pregnant"),S97:S202) -> 44.26470348 | H24: =SUM(D24:G24) -> 145.476135 | O24: 13 | Q24: Open | S24: 10.4559042 | U24: 1 | V24: 10.45599373
C25: Suchostojné | D25: =SUMIF(P43:P58,"Dry",S43:S58) -> 11.74101626 | E25: =SUMIF(P61:P76,"Dry",S61:S76) -> 7.089484894 | F25: =SUMIF(P79:P94,"Dry",S79:S94) -> 5.101227422 | G25: =SUMIF(P97:P202,"Dry",S97:S202) -> 11.27152219 | H25: =SUM(D25:G25) -> 35.20325076 | O25: 14 | Q25: Open | S25: 10.34704704 | U25: 1 | V25: 10.34698853
C26: Celkem | D26: =SUM(D23:D25) -> 100.0799191 | E26: =SUM(E23:E25) -> 53.20038094 | F26: =SUM(F23:F25) -> 38.2802483 | G26: =SUM(G23:G25) -> 84.58357729 | H26: =SUM(D26:G26) -> 276.1441256 | O26: 15 | Q26: Open | S26: 10.23920406 | U26: 1 | V26: 10.2392653
O27: 16 | Q27: Pregnant | S27: 10.1325857 | U27: 1 | V27: 10.13254568
O28: 17 | Q28: Pregnant | S28: 10.02699604 | U28: 1 | V28: 10.02703794
O29: 18 | Q29: Pregnant | S29: 9.922575544 | U29: 1 | V29: 9.922548167
O30: 19 | Q30: Pregnant | S30: 9.819539313 | U30: 1 | V30: 9.819215382
O31: 20 | Q31: Pregnant | S31: 9.716913311 | U31: 1 | V31: 9.717252445
O32: 21 | Q32: Pregnant | S32: 9.615917052 | U32: 1 | V32: 9.615695464
O33: 22 | Q33: Pregnant | S33: 9.515519193 | U33: 1 | V33: 9.515751249
O34: 23 | Q34: Pregnant | S34: 9.41655085 | U34: 1 | V34: 9.416399201
O35: 24 | Q35: Pregnant | S35: 9.318303038 | U35: 1 | V35: 9.318461779
O36: 25 | S36: 0 | U36: 0 | V36: 0
O37: 26 | S37: 0 | U37: 0 | V37: 0
O38: 27 | S38: 0 | U38: 0 | V38: 0
O39: 28 | S39: 0 | U39: 0 | V39: 0
O40: 29 | S40: 0 | U40: 0 | V40: 0
O41: 30 | S41: 0 | U41: 0 | V41: 0
N42: 1st Lact | O42: MIM
O43: 1 | P43: =IF(U43=1,IF(O43<CowCI-1,"Milking","Dry"),"") -> Milking | Q43: =IF(U43=1,IF(O43<CowPreg,"Open","Pregnant"),"") -> Open | S43: 9.08544767 | U43: =IF(O43<=CowCI,1,0) -> 1 | V43: =Z5*(1-cowcull)*U43 -> 9.085345462
O44: 2 | P44: Milking | Q44: Open | S44: 8.858206067 | U44: 1 | V44: =S43*(1-cowcull)*U44 -> 8.858311478
O45: 3 | P45: Milking | Q45: Open | S45: 8.636818787 | U45: 1 | V45: 8.636750915
O46: 4 | P46: Milking | Q46: Open | S46: 8.420828319 | U46: 1 | V46: 8.420898317
O47: 5 | P47: Milking | Q47: Pregnant | S47: 8.21035268 | U47: 1 | V47: 8.210307611
O48: 6 | P48: Milking | Q48: Pregnant | S48: 8.005047381 | U48: 1 | V48: 8.005093863
O49: 7 | P49: Milking | Q49: Pregnant | S49: 7.804951125 | U49: 1 | V49: 7.804921197
O50: 8 | P50: Milking | Q50: Pregnant | S50: 7.610176239 | U50: 1 | V50: 7.609827347
O51: 9 | P51: Milking | Q51: Pregnant | S51: 7.419562072 | U51: 1 | V51: 7.419921833
O52: 10 | P52: Milking | Q52: Pregnant | S52: 7.234304583 | U52: 1 | V52: 7.234073021
O53: 11 | P53: Milking | Q53: Pregnant | S53: 7.053207918 | U53: 1 | V53: 7.053446969
O54: 12 | P54: Dry | Q54: Pregnant | S54: 6.877031637 | U54: 1 | V54: 6.87687772
O55: 13 | P55: Dry | Q55: Pregnant | S55: 4.863984621 | U55: 1 | V55: 6.705105846
O56: 14 | S56: 0 | U56: 0 | V56: 0
O57: 15 | S57: 0 | U57: 0 | V57: 0
O58: 16 | S58: 0 | U58: 0 | V58: 0
N60: 2nd Lact | O60: MIM
O61: 1 | P61: =IF(U61=1,IF(O61<CowCI-1,"Milking","Dry"),"") -> Milking | Q61: =IF(U61=1,IF(O61<CowPreg,"Open","Pregnant"),"") -> Open | S61: 4.742385006 | U61: =IF(O61<=CowCI,1,0) -> 1 | V61: =VLOOKUP(CowCI,O43:S58,5)*(1-cowcull)*U61 -> 4.742385006
O62: 2 | P62: Milking | Q62: Open | S62: 4.623825381 | U62: 1 | V62: =S61*(1-cowcull)*U62 -> 4.623825381
O63: 3 | P63: Milking | Q63: Open | S63: 4.508229746 | U63: 1 | V63: 4.508229746
O64: 4 | P64: Milking | Q64: Open | S64: 4.395524003 | U64: 1 | V64: 4.395524003
O65: 5 | P65: Milking | Q65: Pregnant | S65: 4.285635903 | U65: 1 | V65: 4.285635903
O66: 6 | P66: Milking | Q66: Pregnant | S66: 4.178495005 | U66: 1 | V66: 4.178495005
O67: 7 | P67: Milking | Q67: Pregnant | S67: 4.07403263 | U67: 1 | V67: 4.07403263
O68: 8 | P68: Milking | Q68: Pregnant | S68: 3.972181814 | U68: 1 | V68: 3.972181814
O69: 9 | P69: Milking | Q69: Pregnant | S69: 3.872877269 | U69: 1 | V69: 3.872877269
O70: 10 | P70: Milking | Q70: Pregnant | S70: 3.776055337 | U70: 1 | V70: 3.776055337
O71: 11 | P71: Milking | Q71: Pregnant | S71: 3.681653954 | U71: 1 | V71: 3.681653954
O72: 12 | P72: Dry | Q72: Pregnant | S72: 3.589612605 | U72: 1 | V72: 3.589612605
O73: 13 | P73: Dry | Q73: Pregnant | S73: 3.49987229 | U73: 1 | V73: 3.49987229
O74: 14 | S74: 0 | U74: 0 | V74: 0
O75: 15 | S75: 0 | U75: 0 | V75: 0
O76: 16 | S76: 0 | U76: 0 | V76: 0
N78: 3rd Lact | O78: MIM
O79: 1 | P79: =IF(U79=1,IF(O79<CowCI-1,"Milking","Dry"),"") -> Milking | Q79: =IF(U79=1,IF(O79<CowPreg,"Open","Pregnant"),"") -> Open | S79: 3.412375482 | U79: =IF(O79<=CowCI,1,0) -> 1 | V79: =VLOOKUP(CowCI,O61:S76,5)*(1-cowcull)*U79 -> 3.412375482
O80: 2 | P80: Milking | Q80: Open | S80: 3.327066095 | U80: 1 | V80: =S79*(1-cowcull)*U80 -> 3.327066095
O81: 3 | P81: Milking | Q81: Open | S81: 3.243889443 | U81: 1 | V81: 3.243889443
O82: 4 | P82: Milking | Q82: Open | S82: 3.162792207 | U82: 1 | V82: 3.162792207
O83: 5 | P83: Milking | Q83: Pregnant | S83: 3.083722402 | U83: 1 | V83: 3.083722402
O84: 6 | P84: Milking | Q84: Pregnant | S84: 3.006629342 | U84: 1 | V84: 3.006629342
O85: 7 | P85: Milking | Q85: Pregnant | S85: 2.931463608 | U85: 1 | V85: 2.931463608
O86: 8 | P86: Milking | Q86: Pregnant | S86: 2.858177018 | U86: 1 | V86: 2.858177018
O87: 9 | P87: Milking | Q87: Pregnant | S87: 2.786722592 | U87: 1 | V87: 2.786722592
O88: 10 | P88: Milking | Q88: Pregnant | S88: 2.717054528 | U88: 1 | V88: 2.717054528
O89: 11 | P89: Milking | Q89: Pregnant | S89: 2.649128164 | U89: 1 | V89: 2.649128164
O90: 12 | P90: Dry | Q90: Pregnant | S90: 2.58289996 | U90: 1 | V90: 2.58289996
O91: 13 | P91: Dry | Q91: Pregnant | S91: 2.518327461 | U91: 1 | V91: 2.518327461
O92: 14 | S92: 0 | U92: 0 | V92: 0
O93: 15 | S93: 0 | U93: 0 | V93: 0
O94: 16 | S94: 0 | U94: 0 | V94: 0
N96: 4th Lact | O96: MIM
O97: 1 | P97: =IF(U97=1,IF(O97<CowCI-1,"Milking","Dry"),"") -> Milking | Q97: =IF(U97=1,IF(O97<CowPreg,"Open","Pregnant"),"") -> Open | S97: 2.455369275 | U97: =IF(O97<=CowCI,1,0) -> 1 | V97: =VLOOKUP(CowCI,O79:S94,5)*(1-cowcull)*U97 -> 2.455369275
O98: 2 | P98: Milking | Q98: Open | S98: 2.393985043 | U98: 1 | V98: =S97*(1-cowcull)*U98 -> 2.393985043
O99: 3 | P99: Milking | Q99: Open | S99: 2.334135417 | U99: 1 | V99: 2.334135417
O100: 4 | P100: Milking | Q100: Open | S100: 2.275782031 | U100: 1 | V100: 2.275782031
O101: 5 | P101: Milking | Q101: Pregnant | S101: 2.218887481 | U101: 1 | V101: 2.218887481
O102: 6 | P102: Milking | Q102: Pregnant | S102: 2.163987178 | U102: 1 | V102: 2.163415294
O103: 7 | P103: Milking | Q103: Pregnant | S103: 2.109315614 | U103: 1 | V103: 2.109887498
O104: 8 | P104: Milking | Q104: Pregnant | S104: 2.056582724 | U104: 1 | V104: 2.056582724
O105: 9 | P105: Milking | Q105: Pregnant | S105: 2.005168156 | U105: 1 | V105: 2.005168156
O106: 10 | P106: Milking | Q106: Pregnant | S106: 1.955038952 | U106: 1 | V106: 1.955038952
O107: 11 | P107: Milking | Q107: Pregnant | S107: 1.906162978 | U107: 1 | V107: 1.906162978
O108: 12 | P108: Dry | Q108: Pregnant | S108: 1.858508904 | U108: 1 | V108: 1.858508904
O109: 13 | P109: Dry | Q109: Pregnant | S109: 1.812046181 | U109: 1 | V109: 1.812046181
O110: 14 | S110: 0 | U110: 0 | V110: 0
O111: 15 | S111: 0 | U111: 0 | V111: 0
O112: 16 | S112: 0 | U112: 0 | V112: 0
N114: 5th Lact | O114: MIM
O115: 1 | P115: =IF(U115=1,IF(O115<CowCI-1,"Milking","Dry"),"") -> Milking | Q115: =IF(U115=1,IF(O115<CowPreg,"Open","Pregnant"),"") -> Open | S115: 1.766745026 | U115: =IF(O115<=CowCI,1,0) -> 1 | V115: =VLOOKUP(CowCI,O97:S112,5)*(1-cowcull)*U115 -> 1.766745026
O116: 2 | P116: Milking | Q116: Open | S116: 1.722576401 | U116: 1 | V116: =S115*(1-cowcull)*U116 -> 1.722576401
O117: 3 | P117: Milking | Q117: Open | S117: 1.679511991 | U117: 1 | V117: 1.679511991
O118: 4 | P118: Milking | Q118: Open | S118: 1.637524191 | U118: 1 | V118: 1.637524191
O119: 5 | P119: Milking | Q119: Pregnant | S119: 1.596586086 | U119: 1 | V119: 1.596586086
O120: 6 | P120: Milking | Q120: Pregnant | S120: 1.556671434 | U120: 1 | V120: 1.556671434
O121: 7 | P121: Milking | Q121: Pregnant | S121: 1.517754648 | U121: 1 | V121: 1.517754648
O122: 8 | P122: Milking | Q122: Pregnant | S122: 1.479810782 | U122: 1 | V122: 1.479810782
O123: 9 | P123: Milking | Q123: Pregnant | S123: 1.442815513 | U123: 1 | V123: 1.442815513
O124: 10 | P124: Milking | Q124: Pregnant | S124: 1.406745125 | U124: 1 | V124: 1.406745125
O125: 11 | P125: Milking | Q125: Pregnant | S125: 1.371576497 | U125: 1 | V125: 1.371576497
O126: 12 | P126: Dry | Q126: Pregnant | S126: 1.337287084 | U126: 1 | V126: 1.337287084
O127: 13 | P127: Dry | Q127: Pregnant | S127: 1.303854907 | U127: 1 | V127: 1.303854907
O128: 14 | S128: 0 | U128: 0 | V128: 0
O129: 15 | S129: 0 | U129: 0 | V129: 0
O130: 16 | S130: 0 | U130: 0 | V130: 0
N132: 6th Lact | O132: MIM
O133: 1 | P133: =IF(U133=1,IF(O133<CowCI-1,"Milking","Dry"),"") -> Milking | Q133: =IF(U133=1,IF(O133<CowPreg,"Open","Pregnant"),"") -> Open | S133: 1.271258534 | U133: =IF(O133<=CowCI,1,0) -> 1 | V133: =VLOOKUP(CowCI,O115:S130,5)*(1-cowcull)*U133 -> 1.271258534
O134: 2 | P134: Milking | Q134: Open | S134: 1.239477071 | U134: 1 | V134: =S133*(1-cowcull)*U134 -> 1.239477071
O135: 3 | P135: Milking | Q135: Open | S135: 1.208490144 | U135: 1 | V135: 1.208490144
O136: 4 | P136: Milking | Q136: Open | S136: 1.178277891 | U136: 1 | V136: 1.178277891
O137: 5 | P137: Milking | Q137: Pregnant | S137: 1.148820943 | U137: 1 | V137: 1.148820943
O138: 6 | P138: Milking | Q138: Pregnant | S138: 1.12010042 | U138: 1 | V138: 1.12010042
O139: 7 | P139: Milking | Q139: Pregnant | S139: 1.092097909 | U139: 1 | V139: 1.092097909
O140: 8 | P140: Milking | Q140: Pregnant | S140: 1.064795462 | U140: 1 | V140: 1.064795462
O141: 9 | P141: Milking | Q141: Pregnant | S141: 1.038175575 | U141: 1 | V141: 1.038175575
O142: 10 | P142: Milking | Q142: Pregnant | S142: 1.012221186 | U142: 1 | V142: 1.012221186
O143: 11 | P143: Milking | Q143: Pregnant | S143: 0.986915656 | U143: 1 | V143: 0.986915656
O144: 12 | P144: Dry | Q144: Pregnant | S144: 0.9622427646 | U144: 1 | V144: 0.9622427646
O145: 13 | P145: Dry | Q145: Pregnant | S145: 0.9381866955 | U145: 1 | V145: 0.9381866955
O146: 14 | S146: 0 | U146: 0 | V146: 0
O147: 15 | S147: 0 | U147: 0 | V147: 0
O148: 16 | S148: 0 | U148: 0 | V148: 0
N150: 7th Lact | O150: MIM
O151: 1 | P151: =IF(U151=1,IF(O151<CowCI-1,"Milking","Dry"),"") -> Milking | Q151: =IF(U151=1,IF(O151<CowPreg,"Open","Pregnant"),"") -> Open | S151: 0.9147320281 | U151: =IF(O151<=CowCI,1,0) -> 1 | V151: =VLOOKUP(CowCI,O133:S148,5)*(1-cowcull)*U151 -> 0.9147320281
O152: 2 | P152: Milking | Q152: Open | S152: 0.8918637274 | U152: 1 | V152: =S151*(1-cowcull)*U152 -> 0.8918637274
O153: 3 | P153: Milking | Q153: Open | S153: 0.8695671342 | U153: 1 | V153: 0.8695671342
O154: 4 | P154: Milking | Q154: Open | S154: 0.8478279559 | U154: 1 | V154: 0.8478279559
O155: 5 | P155: Milking | Q155: Pregnant | S155: 0.826632257 | U155: 1 | V155: 0.826632257
O156: 6 | P156: Milking | Q156: Pregnant | S156: 0.8059664505 | U156: 1 | V156: 0.8059664505
O157: 7 | P157: Milking | Q157: Pregnant | S157: 0.7858172893 | U157: 1 | V157: 0.7858172893
O158: 8 | P158: Milking | Q158: Pregnant | S158: 0.766171857 | U158: 1 | V158: 0.766171857
O159: 9 | P159: Milking | Q159: Pregnant | S159: 0.7470175606 | U159: 1 | V159: 0.7470175606
O160: 10 | P160: Milking | Q160: Pregnant | S160: 0.7283421216 | U160: 1 | V160: 0.7283421216
O161: 11 | P161: Milking | Q161: Pregnant | S161: 0.7101335686 | U161: 1 | V161: 0.7101335686
O162: 12 | P162: Dry | Q162: Pregnant | S162: 0.6923802293 | U162: 1 | V162: 0.6923802293
O163: 13 | P163: Dry | Q163: Pregnant | S163: 0.6750707236 | U163: 1 | V163: 0.6750707236
O164: 14 | S164: 0 | U164: 0 | V164: 0
O165: 15 | S165: 0 | U165: 0 | V165: 0
O166: 16 | S166: 0 | U166: 0 | V166: 0
N168: 8th Lact | O168: MIM
O169: 1 | P169: =IF(U169=1,IF(O169<CowCI-1,"Milking","Dry"),"") -> Milking | Q169: =IF(U169=1,IF(O169<CowPreg,"Open","Pregnant"),"") -> Open | S169: 0.6581939555 | U169: =IF(O169<=CowCI,1,0) -> 1 | V169: =VLOOKUP(CowCI,O151:S166,5)*(1-cowcull)*U169 -> 0.6581939555
O170: 2 | P170: Milking | Q170: Open | S170: 0.6417391066 | U170: 1 | V170: =S169*(1-cowcull)*U170 -> 0.6417391066
O171: 3 | P171: Milking | Q171: Open | S171: 0.625695629 | U171: 1 | V171: 0.625695629
O172: 4 | P172: Milking | Q172: Open | S172: 0.6100532382 | U172: 1 | V172: 0.6100532382
O173: 5 | P173: Milking | Q173: Pregnant | S173: 0.5948019073 | U173: 1 | V173: 0.5948019073
O174: 6 | P174: Milking | Q174: Pregnant | S174: 0.5799318596 | U174: 1 | V174: 0.5799318596
O175: 7 | P175: Milking | Q175: Pregnant | S175: 0.5654335631 | U175: 1 | V175: 0.5654335631
O176: 8 | P176: Milking | Q176: Pregnant | S176: 0.551297724 | U176: 1 | V176: 0.551297724
O177: 9 | P177: Milking | Q177: Pregnant | S177: 0.5375152809 | U177: 1 | V177: 0.5375152809
O178: 10 | P178: Milking | Q178: Pregnant | S178: 0.5240773989 | U178: 1 | V178: 0.5240773989
O179: 11 | P179: Milking | Q179: Pregnant | S179: 0.5109754639 | U179: 1 | V179: 0.5109754639
O180: 12 | P180: Dry | Q180: Pregnant | S180: 0.4982010773 | U180: 1 | V180: 0.4982010773
O181: 13 | P181: Dry | Q181: Pregnant | S181: 0.4857460504 | U181: 1 | V181: 0.4857460504
O182: 14 | S182: 0 | U182: 0 | V182: 0
O183: 15 | S183: 0 | U183: 0 | V183: 0
O184: 16 | S184: 0 | U184: 0 | V184: 0
N186: 9th Lact | O186: MIM
O187: 1 | P187: =IF(U187=1,IF(O187<CowCI-1,"Milking","Dry"),"") -> Milking | Q187: =IF(U187=1,IF(O187<CowPreg,"Open","Pregnant"),"") -> Open | S187: 0.4736023991 | U187: =IF(O187<=CowCI,1,0) -> 1 | V187: =VLOOKUP(CowCI,O169:S184,5)*(1-cowcull)*U187 -> 0.4736023991
O188: 2 | P188: Milking | Q188: Open | S188: 0.4617623392 | U188: 1 | V188: =S187*(1-cowcull)*U188 -> 0.4617623392
O189: 3 | P189: Milking | Q189: Open | S189: 0.4502182807 | U189: 1 | V189: 0.4502182807
O190: 4 | P190: Milking | Q190: Open | S190: 0.4389628237 | U190: 1 | V190: 0.4389628237
O191: 5 | P191: Milking | Q191: Pregnant | S191: 0.4279887531 | U191: 1 | V191: 0.4279887531
O192: 6 | P192: Milking | Q192: Pregnant | S192: 0.4172890343 | U192: 1 | V192: 0.4172890343
O193: 7 | P193: Milking | Q193: Pregnant | S193: 0.4068568084 | U193: 1 | V193: 0.4068568084
O194: 8 | P194: Milking | Q194: Pregnant | S194: 0.3966853882 | U194: 1 | V194: 0.3966853882
O195: 9 | P195: Milking | Q195: Pregnant | S195: 0.3867682535 | U195: 1 | V195: 0.3867682535
O196: 10 | P196: Milking | Q196: Pregnant | S196: 0.3770990471 | U196: 1 | V196: 0.3770990471
O197: 11 | P197: Milking | Q197: Pregnant | S197: 0.367671571 | U197: 1 | V197: 0.367671571
O198: 12 | P198: Dry | Q198: Pregnant | S198: 0.3584797817 | U198: 1 | V198: 0.3584797817
O199: 13 | P199: Dry | Q199: Pregnant | S199: 0.3495177872 | U199: 1 | V199: 0.3495177872
O200: 14 | S200: 0 | U200: 0 | V200: 0
O201: 15 | S201: 0 | U201: 0 | V201: 0
O202: 16 | S202: 0 | U202: 0 | V202: 0

Sheet Nápověda
A2: V případě nefunkčnosti tlačítka start, je třeba z počítače odstranit níže uvedené soubory:
A4: C:\Users\jmeno uzivatele\AppData\Local\Temp\Excel8.0\MSForms.exd
A5: C:\Users\jmeno uzivatele\AppData\Local\Temp\VBE\MSForms.exd
A7: Ukončete aplikaci EXCEL (případně další aplikace OFFICE), odstraňte soubory, znovu spusťte Excel s naším programem.
A8: Pokud se nedostanete k uvedeným souborům, je třeba povolit zobrazení skrytých a systémových souborů a adresářů.
A9: Pokud odstranění nepomůže, zkuste ještě restart počítače, případně postupujte dle doporučení Microsoft - příznak 3.
A10: http://support.microsoft.com/kb/3025036
